fUSD/lending_fUSD_20250106
["ID","MTS","AMOUNT","RATE_DAILY","PERIOD"]
[347868203,1736172645603,-500.0,0.00011042,2]
[347868204,1736172645613,-260.30536936,0.00011042,2]
[347868205,1736172645622,-500.0,0.00011042,2]
[347868206,1736172645631,-500.0,0.00011042,2]
[347868207,1736172645641,-500.0,0.00011042,2]
[347868208,1736172645650,-500.0,0.00011042,2]
[347868209,1736172645659,-500.0,0.00011042,2]
[347868210,1736172645669,-526.53,0.00011042,2]
[347868211,1736172645679,-500.0,0.00011042,2]
[347868212,1736172645688,-500.0,0.00011042,2]
[347868213,1736172645699,-500.0,0.00011042,2]
[347868214,1736172645708,-450.64,0.00011042,2]
[347868215,1736172645718,-842.2,0.00011042,2]
[347868216,1736172645727,-1196.71,0.00011042,2]
[347868217,1736172645736,-500.0,0.00011042,2]
[347868218,1736172645746,-1613.49,0.00011042,2]
[347868219,1736172645755,-500.0,0.00011042,2]
[347868220,1736172645764,-500.0,0.00011042,2]
[347868221,1736172645775,-500.0,0.00011042,2]
[347868222,1736172645784,-516.63,0.00011042,2]
[347868223,1736172645795,-500.0,0.00011042,2]
[347868224,1736172645804,-500.0,0.00011042,2]
[347868225,1736172645813,-500.0,0.00011042,2]
[347868226,1736172645823,-500.0,0.00011042,2]
[347868227,1736172645834,-500.0,0.00011042,2]
[347868228,1736172645843,-500.0,0.00011043,2]
[347868229,1736172645853,-622.71587456,0.00011043,2]
[347868230,1736172645863,-1716.86,0.00011043,2]
[347868231,1736172645873,-500.0,0.00011043,2]
[347868232,1736172645883,-662.47,0.00011043,2]
[347868233,1736172645893,-150.0,0.00011074,2]
[347868234,1736172645902,-1852.58,0.00011095,2]
[347868235,1736172645911,-500.0,0.00011095,2]
[347868236,1736172645921,-924.35,0.00011095,2]
[347868237,1736172645931,-1215.11,0.00011095,2]
[347868238,1736172645941,-500.0,0.00011095,2]
[347868239,1736172645951,-646.65,0.00011095,2]
[347868240,1736172645961,-500.0,0.00011095,2]
[347868241,1736172645970,-526.4,0.00011095,2]
[347868242,1736172645980,-863.31,0.00011095,2]
[347868243,1736172645989,-902.64,0.00011095,2]
[347868244,1736172645999,-777.25,0.00011095,2]
[347868245,1736172646008,-500.0,0.00011095,2]
[347868246,1736172646018,-500.0,0.00011095,2]
[347868247,1736172646028,-834.3,0.00011095,2]
[347868248,1736172646038,-500.0,0.00011095,2]
[347868249,1736172646049,-500.0,0.00011095,2]
[347868250,1736172646059,-500.0,0.00011095,2]
[347868251,1736172646068,-500.0,0.00011095,2]
[347868252,1736172646078,-500.0,0.00011095,2]
[347868253,1736172646087,-940.025577,0.00011095,2]
[347868254,1736172646097,-500.0,0.00011095,2]
[347868255,1736172646108,-626.92,0.00011095,2]
[347868256,1736172646117,-1407.97,0.00011095,2]
[347868257,1736172646127,-1062.461681,0.00011117,2]
[347868258,1736172646137,-1559.15,0.00011117,2]
[347868259,1736172646146,-500.0,0.00011117,2]
[347868260,1736172646155,-500.0,0.00011117,2]
[347868261,1736172646165,-500.0,0.00011117,2]
[347868262,1736172646174,-500.0,0.00011117,2]
[347868263,1736172646183,-964.5,0.00011117,2]
[347868264,1736172646193,-714.72,0.00011117,2]
[347868265,1736172646203,-670.57,0.00011117,2]
[347868266,1736172646212,-500.0,0.00011117,2]
[347868267,1736172646222,-1682.35,0.00011117,2]
[347868268,1736172646232,-500.0,0.00011117,2]
[347868269,1736172646241,-984.29,0.00011117,2]
[347868270,1736172646251,-500.0,0.00011117,2]
[347868271,1736172646261,-3446.14,0.00011117,2]
[347868272,1736172646271,-500.0,0.00011117,2]
[347868273,1736172646283,-500.0,0.00011117,2]
[347868274,1736172646293,-1023.98,0.00011117,2]
[347868275,1736172646303,-1261.21,0.00011117,2]
[347868276,1736172646315,-500.0,0.00011117,2]
[347868277,1736172646325,-824.43,0.00011117,2]
[347868278,1736172646334,-1722.97,0.00011117,2]
[347868279,1736172646344,-3628.75,0.00011117,2]
[347868280,1736172646354,-742.29,0.00011117,2]
[347868281,1736172646364,-500.0,0.00011119,2]
[347868282,1736172646374,-1175.9,0.00011119,2]
[347868283,1736172646383,-824.04,0.00011119,2]
[347868284,1736172646393,-151.2225868,0.00011135,2]
[347868285,1736172646403,-150.0,0.00011136,2]
[347868286,1736172646412,-1267.0,0.00011136,2]
[347868287,1736172646421,-2014.0,0.00011136,2]
[347868288,1736172646431,-634.0,0.00011136,2]
[347868289,1736172646441,-566.0,0.00011136,2]
[347868290,1736172646451,-150.0,0.00011136,2]
[347868291,1736172646460,-1860.0,0.00011136,2]
[347868292,1736172646667,-819.0,0.00011136,2]
[347868293,1736172646680,-918.0,0.00011136,2]
[347868294,1736172646691,-1258.0,0.00011136,2]
[347868295,1736172646701,-3776.0,0.00011136,2]
[347868296,1736172646711,-537.0,0.00011136,2]
[347868297,1736172646720,-3975.0,0.00011136,2]
[347868298,1736172646730,-3894.0,0.00011136,2]
[347868300,1736172646739,-150.0,0.00011136,2]
[347868302,1736172646749,-1173.0,0.00011136,2]
[347868303,1736172646758,-1103.0,0.00011136,2]
[347868304,1736172646768,-527.888,0.0001119,2]
[347868305,1736172646777,-500.0,0.00011229,2]
[347868306,1736172646787,-500.0,0.00011229,2]
[347868307,1736172646797,-500.0,0.00011229,2]
[347868308,1736172646807,-500.0,0.00011229,2]
[347868309,1736172646816,-500.0,0.0001123,2]
[347868310,1736172646825,-500.0,0.0001123,2]
[347868311,1736172646834,-500.0,0.0001123,2]
[347868312,1736172646844,-962.39,0.00011231,2]
[347868313,1736172646853,-500.0,0.00011231,2]
[347868314,1736172646862,-624.07,0.00011231,2]
[347868315,1736172646871,-623.83,0.00011231,2]
[347868316,1736172646881,-1338.64,0.00011231,2]
[347868317,1736172646890,-705.89,0.00011231,2]
[347868318,1736172646900,-1978.57,0.00011231,2]
[347868319,1736172646909,-849.93,0.00011231,2]
[347868320,1736172646919,-1272.49,0.00011231,2]
[347868321,1736172646930,-704.07,0.00011231,2]
[347868322,1736172646939,-500.0,0.00011231,2]
[347868323,1736172646949,-754.79,0.00011231,2]
[347868324,1736172646958,-1658.69,0.00011231,2]
[347868325,1736172646968,-842.64,0.00011231,2]
[347868326,1736172646978,-500.0,0.00011292,2]
[347868327,1736172646988,-150.0,0.0001131,2]
[347868328,1736172646997,-151.2225868,0.00011312,2]
[347868329,1736172647007,-1236.04,0.00011316,2]
[347868330,1736172647016,-500.0,0.00011316,2]
[347868331,1736172647025,-500.0,0.00011316,2]
[347868332,1736172647035,-500.0,0.00011316,2]
[347868333,1736172647044,-500.0,0.00011316,2]
[347868334,1736172647055,-500.0,0.00011316,2]
[347868335,1736172647064,-500.0,0.00011316,2]
[347868336,1736172647074,-500.0,0.00011316,2]
[347868337,1736172647083,-500.0,0.00011316,2]
[347868338,1736172647092,-500.0,0.00011316,2]
[347868339,1736172647102,-200.4678862,0.00011316,2]
[347868340,1736172647111,-500.0,0.00011316,2]
[347868341,1736172647120,-842.2,0.00011316,2]
[347868342,1736172647130,-1196.71,0.00011316,2]
[347868343,1736172647139,-500.0,0.00011316,2]
[347868344,1736172647148,-1613.49,0.00011316,2]
[347868345,1736172647157,-543.16965821,0.00011316,2]
[347868346,1736172647166,-500.0,0.00011316,2]
[347868347,1736172647175,-463.02493943,0.00011316,2]
[347868348,1736172647185,-516.63,0.00011316,2]
[347868349,1736172647195,-500.0,0.00011316,2]
[347868350,1736172647204,-500.0,0.00011316,2]
[347868351,1736172647214,-500.0,0.00011316,2]
[347868352,1736172647223,-500.0,0.00011316,2]
[347868353,1736172647233,-500.0,0.00011316,2]
[347868354,1736172647243,-500.0,0.00011317,2]
[347868355,1736172647252,-1716.86,0.00011317,2]
[347868356,1736172647261,-500.0,0.00011317,2]
[347868357,1736172647271,-662.47,0.00011317,2]
[347868358,1736172647283,-429.61954248,0.00011327,2]
[347868359,1736172647292,-1852.58,0.00011369,2]
[347868360,1736172647303,-500.0,0.00011369,2]
[347868361,1736172647313,-924.35,0.00011369,2]
[347868362,1736172647323,-1215.11,0.00011369,2]
[347868363,1736172647332,-500.0,0.00011369,2]
[347868364,1736172647342,-646.65,0.00011369,2]
[347868365,1736172647351,-500.0,0.00011369,2]
[347868366,1736172647360,-526.4,0.00011369,2]
[347868367,1736172647370,-863.31,0.00011369,2]
[347868368,1736172647379,-902.64,0.00011369,2]
[347868369,1736172647388,-777.25,0.00011369,2]
[347868370,1736172647398,-500.0,0.00011369,2]
[347868371,1736172647408,-500.0,0.00011369,2]
[347868372,1736172647418,-834.3,0.00011369,2]
[347868373,1736172647428,-500.0,0.00011369,2]
[347868374,1736172647438,-500.0,0.00011369,2]
[347868375,1736172647448,-500.0,0.00011369,2]
[347868376,1736172647458,-500.0,0.00011369,2]
[347868377,1736172647467,-500.0,0.00011369,2]
[347868378,1736172647477,-940.025577,0.00011369,2]
[347868379,1736172647487,-500.0,0.00011369,2]
[347868380,1736172647497,-626.92,0.00011369,2]
[347868381,1736172647507,-1407.97,0.00011369,2]
[347868382,1736172647516,-150.0,0.00011388,2]
[347868383,1736172647526,-1062.461681,0.00011391,2]
[347868384,1736172647535,-1559.15,0.00011391,2]
[347868385,1736172647545,-500.0,0.00011391,2]
[347868386,1736172647556,-500.0,0.00011391,2]
[347868387,1736172647565,-500.0,0.00011391,2]
[347868388,1736172647575,-964.5,0.00011391,2]
[347868389,1736172647585,-714.72,0.00011391,2]
[347868390,1736172647595,-670.57,0.00011391,2]
[347868391,1736172647604,-500.0,0.00011391,2]
[347868392,1736172647614,-1682.35,0.00011391,2]
[347868393,1736172647624,-500.0,0.00011391,2]
[347868394,1736172647634,-984.29,0.00011391,2]
[347868395,1736172647644,-500.0,0.00011391,2]
[347868396,1736172647653,-3446.14,0.00011391,2]
[347868397,1736172647663,-500.0,0.00011391,2]
[347868398,1736172647673,-500.0,0.00011391,2]
[347868399,1736172647682,-1023.98,0.00011391,2]
[347868400,1736172647691,-1261.21,0.00011391,2]
[347868401,1736172647702,-500.0,0.00011391,2]
[347868402,1736172647711,-824.43,0.00011391,2]
[347868403,1736172647721,-1722.97,0.00011391,2]
[347868404,1736172647732,-3628.75,0.00011391,2]
[347868405,1736172647742,-500.0,0.00011393,2]
[347868406,1736172647752,-1175.9,0.00011393,2]
[347868407,1736172647761,-824.04,0.00011393,2]
[347868408,1736172647771,-151.2225868,0.00011488,2]
[347868409,1736172647780,-500.0,0.00011503,2]
[347868410,1736172647790,-500.0,0.00011503,2]
[347868411,1736172647800,-595.45303995,0.00011503,2]
[347868412,1736172647810,-500.0,0.00011503,2]
[347868413,1736172647820,-256.96827514,0.00011504,2]
[347868414,1736172647830,-500.0,0.00011504,2]
[347868415,1736172647839,-500.0,0.00011504,2]
[347868416,1736172647849,-962.39,0.00011505,2]
[347868417,1736172647859,-500.0,0.00011505,2]
[347868418,1736172647868,-624.07,0.00011505,2]
[347868419,1736172647878,-623.83,0.00011505,2]
[347868420,1736172647888,-1338.64,0.00011505,2]
[347868421,1736172647897,-705.89,0.00011505,2]
[347868422,1736172647906,-1978.57,0.00011505,2]
[347868423,1736172647916,-849.93,0.00011505,2]
[347868424,1736172647926,-1272.49,0.00011505,2]
[347868425,1736172647935,-704.07,0.00011505,2]
[347868426,1736172647945,-500.0,0.00011505,2]
[347868427,1736172647954,-754.79,0.00011505,2]
[347868428,1736172647964,-1658.69,0.00011505,2]
[347868429,1736172647974,-842.64,0.00011505,2]
[347868430,1736172647984,-1000.0,0.00011532,2]
[347868431,1736172647993,-150.0,0.00011545,2]
[347868432,1736172648003,-4488.875,0.00011562,2]
[347868433,1736172648012,-209.855,0.00011562,2]
[347868434,1736172648022,-500.0,0.00011566,2]
[347868435,1736172648031,-1236.04,0.0001159,2]
[347868436,1736172648040,-500.0,0.0001159,2]
[347868437,1736172648052,-500.0,0.0001159,2]
[347868438,1736172648062,-500.0,0.0001159,2]
[347868439,1736172648072,-500.0,0.0001159,2]
[347868440,1736172648082,-500.0,0.0001159,2]
[347868441,1736172648091,-500.0,0.0001159,2]
[347868442,1736172648100,-150.8116899,0.0001159,2]
[347868443,1736172648110,-500.0,0.0001159,2]
[347868444,1736172648119,-500.0,0.0001159,2]
[347868445,1736172648129,-500.0,0.0001159,2]
[347868446,1736172648139,-842.2,0.0001159,2]
[347868447,1736172648149,-1196.71,0.0001159,2]
[347868448,1736172648158,-500.0,0.0001159,2]
[347868449,1736172648168,-1613.49,0.0001159,2]
[347868450,1736172648178,-500.0,0.0001159,2]
[347868451,1736172648187,-516.63,0.0001159,2]
[347868452,1736172648197,-500.0,0.0001159,2]
[347868453,1736172648207,-500.0,0.0001159,2]
[347868454,1736172648216,-500.0,0.0001159,2]
[347868455,1736172648226,-500.0,0.0001159,2]
[347868456,1736172648236,-500.0,0.0001159,2]
[347868457,1736172648246,-500.0,0.00011591,2]
[347868458,1736172648255,-1716.86,0.00011591,2]
[347868459,1736172648266,-500.0,0.00011591,2]
[347868460,1736172648278,-662.47,0.00011591,2]
[347868461,1736172648287,-1000.0,0.00011609,2]
[347868462,1736172648297,-1000.0,0.00011609,2]
[347868463,1736172648308,-1000.0,0.00011609,2]
[347868464,1736172648319,-1000.0,0.00011609,2]
[347868465,1736172648328,-1000.0,0.00011609,2]
[347868466,1736172648337,-1000.0,0.00011609,2]
[347868467,1736172648347,-1000.0,0.00011609,2]
[347868468,1736172648359,-1000.0,0.00011609,2]
[347868469,1736172648369,-1000.0,0.00011609,2]
[347868470,1736172648379,-1000.0,0.00011609,2]
[347868471,1736172648388,-432.51266379,0.00011623,2]
[347868472,1736172648397,-500.0,0.00011634,2]
[347868473,1736172648407,-1852.58,0.00011643,2]
[347868474,1736172648416,-500.0,0.00011643,2]
[347868475,1736172648426,-924.35,0.00011643,2]
[347868476,1736172648436,-1215.11,0.00011643,2]
[347868477,1736172648445,-500.0,0.00011643,2]
[347868478,1736172648455,-646.65,0.00011643,2]
[347868479,1736172648464,-500.0,0.00011643,2]
[347868480,1736172648474,-526.4,0.00011643,2]
[347868481,1736172648483,-863.31,0.00011643,2]
[347868482,1736172648492,-902.64,0.00011643,2]
[347868483,1736172648502,-777.25,0.00011643,2]
[347868484,1736172648512,-500.0,0.00011643,2]
[347868485,1736172648522,-500.0,0.00011643,2]
[347868486,1736172648532,-834.3,0.00011643,2]
[347868487,1736172648541,-500.0,0.00011643,2]
[347868488,1736172648553,-500.0,0.00011643,2]
[347868489,1736172648563,-344.14,0.00011643,2]
[347868490,1736172648572,-500.0,0.00011643,2]
[347868491,1736172648583,-500.0,0.00011643,2]
[347868492,1736172648592,-940.025577,0.00011643,2]
[347868493,1736172648602,-500.0,0.00011643,2]
[347868494,1736172648612,-626.92,0.00011643,2]
[347868495,1736172648622,-1407.97,0.00011643,2]
[347868496,1736172648632,-151.2225868,0.00011665,2]
[347868497,1736172648641,-1062.461681,0.00011665,2]
[347868498,1736172648651,-1559.15,0.00011665,2]
[347868499,1736172648661,-500.0,0.00011665,2]
[347868500,1736172648670,-500.0,0.00011665,2]
[347868501,1736172648680,-500.0,0.00011665,2]
[347868502,1736172648691,-964.5,0.00011665,2]
[347868503,1736172648702,-714.72,0.00011665,2]
[347868504,1736172648711,-670.57,0.00011665,2]
[347868505,1736172648721,-500.0,0.00011665,2]
[347868506,1736172648731,-1682.35,0.00011665,2]
[347868507,1736172648740,-500.0,0.00011665,2]
[347868508,1736172648749,-984.29,0.00011665,2]
[347868509,1736172648759,-500.0,0.00011665,2]
[347868510,1736172648768,-3446.14,0.00011665,2]
[347868511,1736172648777,-500.0,0.00011665,2]
[347868512,1736172648787,-500.0,0.00011665,2]
[347868513,1736172648797,-1023.98,0.00011665,2]
[347868514,1736172648807,-1261.21,0.00011665,2]
[347868515,1736172648816,-500.0,0.00011665,2]
[347868516,1736172648827,-824.43,0.00011665,2]
[347868517,1736172648836,-1722.97,0.00011665,2]
[347868518,1736172648846,-3628.75,0.00011665,2]
[347868519,1736172648855,-500.0,0.00011667,2]
[347868520,1736172648864,-1175.9,0.00011667,2]
[347868521,1736172648873,-824.04,0.00011667,2]
[347868522,1736172648882,-19019.47884983,0.0001167,2]
[347868523,1736172648892,-264.3775785,0.000117,2]
[347868524,1736172648901,-160.78565145,0.000117,2]
[347868525,1736172648911,-32791.0,0.0001177,2]
[347868526,1736172648920,-6152.5726681,0.00011773,2]
[347868527,1736172648931,-2581.5910598,0.00011773,2]
[347868528,1736172648940,-987.4675641,0.00011773,2]
[347868529,1736172648950,-500.0,0.00011777,2]
[347868530,1736172648959,-500.0,0.00011777,2]
[347868531,1736172648969,-500.0,0.00011778,2]
[347868532,1736172648978,-500.0,0.00011778,2]
[347868533,1736172648987,-962.39,0.00011779,2]
[347868534,1736172648997,-500.0,0.00011779,2]
[347868535,1736172649006,-624.07,0.00011779,2]
[347868536,1736172649015,-623.83,0.00011779,2]
[347868537,1736172649024,-1338.64,0.00011779,2]
[347868538,1736172649033,-705.89,0.00011779,2]
[347868539,1736172649043,-1978.57,0.00011779,2]
[347868540,1736172649052,-200.0,0.00011779,2]
[347868541,1736172649062,-849.93,0.00011779,2]
[347868542,1736172649071,-1272.49,0.00011779,2]
[347868543,1736172649083,-704.07,0.00011779,2]
[347868544,1736172649093,-3000.0,0.00011779,2]
[347868545,1736172649102,-500.0,0.00011779,2]
[347868546,1736172649112,-754.79,0.00011779,2]
[347868547,1736172649122,-1658.69,0.00011779,2]
[347868548,1736172649132,-842.64,0.00011779,2]
[347868549,1736172649141,-1892.7852,0.0001178,2]
[347868550,1736172649150,-205.60199953,0.0001178,2]
[347868551,1736172649160,-150.0,0.00011781,2]
[347868552,1736172649169,-150.0,0.00011781,2]
[347868553,1736172649179,-150.0,0.00011781,2]
[347868554,1736172649188,-63018.02317263,0.00011791,2]
[347868555,1736172649197,-177101.93484092,0.00011799,4]
[347868556,1736172649316,-11876.39998308,0.00011799,4]
[347868557,1736172649327,-800.09614955,0.00011799,4]
[347868558,1736172649342,-5643.5,0.00011799,4]
[347868559,1736172649353,-10940.81034,0.00011799,4]
[347868560,1736172649367,-300.0,0.00011799,4]
[347868561,1736172649706,-500.0,0.00010221,2]
[347868562,1736172649715,-3065.9062445,0.00010494,2]
[347868563,1736172649725,-500.0,0.00010495,2]
[347868564,1736172649735,-1436.67249766,0.00010547,2]
[347868565,1736172649746,-138.64750234,0.00010547,2]
[347868566,1736172649755,-1575.32,0.00010821,2]
[347868567,1736172649765,-1304.70200766,0.00011095,2]
[347868568,1736172649776,-270.61799234,0.00011095,2]
[347868569,1736172649785,-1575.32,0.00011369,2]
[347868570,1736172649795,-742.29,0.00011391,2]
[347868571,1736172649809,-742.29,0.00011665,2]
[347868572,1736172649818,-1779810.40677464,0.00011799,4]
[347868573,1736172649834,-671.8240638,0.00011799,4]
[347868574,1736172649845,-5132.2190332,0.00011799,4]
[347868575,1736172649855,-2112.7,0.00011799,4]
[347868576,1736172649891,-18271.60560005,0.00011799,4]
[347868577,1736172649909,-500.0,0.00010769,2]
[347868578,1736172649918,-1364.749998,0.00011799,4]
[347868579,1736172649930,-1254.315433,0.00011799,4]
[347868580,1736172649940,-4950.0,0.00011799,4]
[347868581,1736172649951,-1200.0,0.00011799,4]
[347868582,1736172649962,-916.16427119,0.00011799,4]
[347868583,1736172649973,-16021.28016304,0.00011799,4]
[347868584,1736172650416,-4016.60739647,0.00011799,4]
[347868585,1736172650441,-396.48358199,0.00011643,2]
[347868587,1736172675903,958.41,8.3e-05,2]
[347868588,1736172808616,205.622105,0.000196,120]
[347868589,1736172867071,205.622105,0.000196,120]
[347868590,1736172877571,205.6221,0.000196,120]
[347868591,1736172887037,205.622105,0.000196,120]
[347868608,1736173701973,478.06,8.219e-05,2]
[347868626,1736173832415,-250.0,9.307e-05,2]
[347868627,1736173832426,-356.1999975,9.363e-05,2]
[347868628,1736173832437,-616.60279992,9.363e-05,2]
[347868629,1736173832449,-2219.00837385,9.363e-05,2]
[347868630,1736173832459,-1000.0,9.363e-05,2]
[347868631,1736173832468,-412.23,9.488e-05,2]
[347868632,1736173832479,-163.59,9.52e-05,2]
[347868633,1736173832489,-250.0,9.656e-05,2]
[347868634,1736173832499,-314.39,9.701e-05,2]
[347868635,1736173832725,-300.0,9.886e-05,2]
[347868636,1736173832735,-2500.0,9.887e-05,2]
[347868637,1736173832744,-2500.0,9.887e-05,2]
[347868638,1736173832754,-250.0,9.914e-05,2]
[347868639,1736173832763,-6562.35266063,9.987e-05,2]
[347868640,1736173832775,-771.59278563,9.987e-05,2]
[347868641,1736173832805,-805.61696077,9.987e-05,2]
[347868643,1736173832820,-15760.43759297,9.987e-05,2]
[347868645,1736173832829,-150.0,9.998e-05,2]
[347868647,1736173832839,-500.0,9.999e-05,2]
[347868649,1736173832848,-553.12,9.999e-05,2]
[347868650,1736173832858,-500.0,9.999e-05,2]
[347868651,1736173832867,-393.43988335,9.999e-05,2]
[347868652,1736173832877,-500.0,9.999e-05,2]
[347868653,1736173832887,-500.0,9.999e-05,2]
[347868654,1736173832896,-500.0,9.999e-05,2]
[347868657,1736173832906,-500.0,9.999e-05,2]
[347868660,1736173832915,-500.0,9.999e-05,2]
[347868662,1736173832925,-570.93,9.999e-05,2]
[347868664,1736173832934,-843.66,9.999e-05,2]
[347868666,1736173832943,-1198.2,9.999e-05,2]
[347868668,1736173832953,-500.0,9.999e-05,2]
[347868670,1736173832962,-642.02,9.999e-05,2]
[347868672,1736173832971,-567.79,9.999e-05,2]
[347868674,1736173832982,-1769.7,9.999e-05,2]
[347868676,1736173832991,-161.43,0.0001,2]
[347868678,1736173833000,-157.16813514,0.0001,2]
[347868680,1736173833010,-157.16813513,0.0001,2]
[347868682,1736173833019,-936.4555,0.00010073,2]
[347868684,1736173833029,-18164.4393,0.00010073,2]
[347868686,1736173833038,-157.16813513,0.000101,2]
[347868688,1736173833048,-300.0,0.00010114,2]
[347868690,1736173833058,-479.35,0.00010137,2]
[347868692,1736173833069,-77341.6766,0.00010173,2]
[347868694,1736173833079,-500.0,0.00010273,2]
[347868696,1736173833089,-500.0,0.00010273,2]
[347868698,1736173833099,-570.93,0.00010273,2]
[347868700,1736173833109,-843.66,0.00010273,2]
[347868702,1736173833119,-1198.2,0.00010273,2]
[347868704,1736173833129,-500.0,0.00010273,2]
[347868706,1736173833138,-642.02,0.00010273,2]
[347868708,1736173833148,-567.79,0.00010273,2]
[347868710,1736173833157,-1769.7,0.00010273,2]
[347868712,1736173833167,-500.0,0.00010346,2]
[347868714,1736173833177,-500.0,0.00010346,2]
[347868716,1736173833187,-500.0,0.00010346,2]
[347868718,1736173833197,-500.0,0.00010346,2]
[347868720,1736173833207,-675.59,0.00010346,2]
[347868722,1736173833217,-860.7,0.00010346,2]
[347868724,1736173833226,-500.0,0.00010346,2]
[347868726,1736173833236,-500.0,0.00010346,2]
[347868728,1736173833246,-500.0,0.00010346,2]
[347868730,1736173833255,-632.35,0.00010346,2]
[347868732,1736173833266,-500.0,0.00010346,2]
[347868734,1736173833275,-660.21,0.00010346,2]
[347868736,1736173833285,-500.0,0.00010346,2]
[347868738,1736173833295,-571.39,0.00010346,2]
[347868740,1736173833305,-611.79,0.00010346,2]
[347868742,1736173833314,-500.0,0.00010346,2]
[347868744,1736173833324,-500.0,0.00010346,2]
[347868746,1736173833333,-500.0,0.00010346,2]
[347868748,1736173833342,-500.0,0.00010346,2]
[347868750,1736173833351,-500.0,0.00010346,2]
[347868752,1736173833361,-1422.45,0.00010346,2]
[347868754,1736173833373,-500.0,0.00010346,2]
[347868756,1736173833382,-899.228474,0.00010346,2]
[347868758,1736173833392,-165.163599,0.00010346,2]
[347868760,1736173833401,-500.0,0.00010346,2]
[347868762,1736173833410,-1185.8,0.00010346,2]
[347868764,1736173833419,-500.0,0.00010346,2]
[347868766,1736173833429,-500.0,0.00010346,2]
[347868768,1736173833439,-500.0,0.00010346,2]
[347868770,1736173833448,-1333.08,0.00010346,2]
[347868772,1736173833458,-52868.7795,0.00010347,2]
[347868774,1736173833467,-54742.06545347,0.00010347,2]
[347868775,1736173833478,-166.69,0.00010377,2]
[347868777,1736173833487,-478.06,0.0001044,2]
[347868780,1736173833497,-15063.0894,0.00010447,2]
[347868782,1736173833507,-157.16813513,0.0001045,2]
[347868783,1736173833517,-500.0,0.00010493,2]
[347868785,1736173833527,-978.53,0.00010493,2]
[347868787,1736173833537,-255.86,0.00010493,2]
[347868789,1736173833547,-500.0,0.00010493,2]
[347868791,1736173833557,-559.85526165,0.00010493,2]
[347868794,1736173833567,-500.0,0.00010493,2]
[347868796,1736173833577,-500.0,0.00010493,2]
[347868797,1736173833587,-500.0,0.00010493,2]
[347868799,1736173833597,-328.32463064,0.00010493,2]
[347868801,1736173833607,-500.0,0.00010493,2]
[347868803,1736173833617,-1225.917325,0.00010493,2]
[347868806,1736173833627,-500.0,0.00010493,2]
[347868807,1736173833636,-500.0,0.00010493,2]
[347868810,1736173833646,-500.0,0.00010493,2]
[347868812,1736173833655,-1320.31,0.00010493,2]
[347868813,1736173833665,-179.83239519,0.00010493,2]
[347868816,1736173833675,-500.0,0.00010493,2]
[347868818,1736173833685,-500.0,0.00010493,2]
[347868820,1736173833694,-500.0,0.00010493,2]
[347868822,1736173833704,-500.0,0.00010493,2]
[347868824,1736173833713,-500.0,0.00010493,2]
[347868826,1736173833723,-500.0,0.00010493,2]
[347868828,1736173833733,-500.0,0.00010493,2]
[347868830,1736173833742,-500.0,0.00010493,2]
[347868831,1736173833750,-500.0,0.00010493,2]